bitfinex/quotes_ETHUSD_20250807
["timestamp","ask_amount","ask_price","bid_price","bid_amount"]
[1754535399121,0.9027,3663.3,3663.2,2.8666496]
[1754535399522,0.9027,3663.3,3663.2,0.1368]
[1754535399819,0.9027,3663.3,3663.2,2.86665367]
[1754535400534,0.9027,3663.3,3663.2,0.1368]
[1754535400697,0.9027,3663.3,3662.8,0.002]
[1754535400905,5.0967,3663.2,3662.9,2.73007312]
[1754535401101,0.9027,3663.1,3662.9,2.73007312]
[1754535401305,0.9027,3663.1,3663.0,2.73000273]
[1754535401306,0.4405,3663.1,3663.0,2.73000273]
[1754535401615,0.1368,3663.3,3663.1,2.72986566]
[1754535401940,4.195,3663.2,3663.1,2.72986566]
[1754535402151,0.1368,3663.7,3663.1,2.86666566]
[1754535402447,4.6562,3663.6,3663.2,2.72978521]
[1754535402627,4.194,3663.6,3663.3,2.72977812]
[1754535402794,0.9027,3663.5,3663.3,2.72977812]
[1754535402996,4.196,3663.4,3663.1,0.1368]
[1754535403197,10.57696618,3663.3,3662.8,0.002]
[1754535403396,9.67426618,3663.0,3662.8,0.002]
[1754535403626,4.3338,3662.9,3662.8,0.002]
[1754535403819,5.2365,3662.9,3662.8,0.002]
[1754535404019,0.1368,3662.9,3662.8,0.002]
[1754535404197,4.3338,3662.9,3662.8,0.002]
[1754535404407,5.0997,3662.9,3662.8,0.002]
[1754535405609,0.1368,3663.0,3662.8,0.002]
[1754535405920,9.67426618,3663.4,3662.8,0.002]
[1754535405921,4.197,3662.9,3662.8,0.002]
[1754535406109,4.6592,3662.9,3662.8,0.002]
[1754535406427,5.0997,3662.9,3662.8,0.002]
[1754535406811,0.9027,3662.9,3662.8,0.002]
[1754535407034,5.1007,3662.9,3662.8,0.002]
[1754535407250,5.0997,3662.9,3662.8,0.002]
[1754535411436,4.194,3662.9,3662.8,2.73214383]
[1754535412429,7.18,3663.7,3663.0,2.72997837]
[1754535412607,4.3318,3663.6,3662.8,0.1388]
[1754535412818,0.1368,3663.6,3663.5,2.72963013]
[1754535413117,0.1368,3664.0,3663.7,2.72946721]
[1754535413317,4.196,3663.9,3663.7,2.72946721]
[1754535413534,4.196,3663.9,3663.6,2.72954147]
[1754535413739,4.6768,3663.9,3663.5,0.1368]
[1754535413913,9.67426618,3663.6,3662.9,2.73001121]
[1754535414122,0.1368,3663.4,3662.9,2.86681121]
[1754535414305,5.118,3663.3,3662.9,0.1368]
[1754535414500,0.4808,3663.2,3662.8,2.7321292]
[1754535414762,4.197,3663.1,3662.8,2.7321292]
[1754535414920,4.197,3663.1,3662.8,0.002]
[1754535415314,4.197,3663.1,3662.9,2.73002118]
[1754535416342,4.197,3663.0,3662.8,2.73213885]
[1754535416541,4.197,3663.0,3662.9,2.73007726]
[1754535416743,0.1368,3663.4,3662.8,2.73213885]
[1754535416909,0.577,3663.9,3663.4,2.72966387]
[1754535417109,5.117,3663.8,3663.4,2.86646387]
[1754535417437,0.4808,3663.7,3663.4,2.86646387]
[1754535418150,0.921,3663.6,3663.4,0.1368]
[1754535418356,4.2,3663.5,3663.4,0.1368]
[1754535418552,5.121,3663.5,3662.8,0.002]
[1754535418850,0.1368,3663.3,3662.8,0.1388]
[1754535419048,5.12,3663.2,3662.8,0.1388]
[1754535419224,0.921,3663.1,3662.9,2.73006465]
[1754535419731,0.921,3663.1,3663.0,2.73000273]
[1754535419933,0.4808,3663.1,3662.8,0.1388]
[1754535420152,0.921,3663.0,3662.9,2.73007379]
[1754535420452,0.1368,3663.3,3663.0,2.72997282]
[1754535420750,4.202,3663.2,3663.1,2.7299282]
[1754535420949,4.201,3663.2,3662.9,2.73007726]
[1754535421170,4.6818,3663.2,3663.1,0.1368]
[1754535421314,4.6412,3663.2,3663.1,0.1368]
[1754535421520,4.6412,3663.2,3663.1,2.8667282]
[1754535421721,4.201,3663.2,3663.1,2.8667282]
[1754535422663,5.122,3663.2,3663.1,0.1368]
[1754535422951,5.122,3663.2,3663.0,2.72993957]
[1754535422952,5.122,3663.2,3662.8,0.002]
[1754535423122,4.2,3663.1,3662.9,0.2705]
[1754535423320,0.6176,3663.7,3663.4,2.72969348]
[1754535423544,4.2,3663.6,3663.4,2.72969348]
[1754535423743,4.2,3663.6,3663.5,2.72963013]
[1754535424266,4.2,3663.6,3662.8,2.94839899]
[1754535424267,5.121,3663.6,3663.4,2.729693]
[1754535424416,4.2,3663.6,3663.3,2.8665652]
[1754535424621,0.921,3663.5,3663.3,2.8665652]
[1754535424919,0.4808,3663.4,3663.3,2.8665652]
[1754535425119,0.921,3663.4,3663.1,2.72991188]
[1754535425362,4.205,3663.3,3662.9,2.73007726]
[1754535425530,4.205,3663.3,3662.9,2.86687726]
[1754535425736,0.921,3663.2,3662.9,2.86687726]
[1754535425930,0.921,3663.1,3663.0,2.72999279]
[1754535426965,0.4808,3663.1,3663.0,2.72999279]
[1754535427265,4.205,3663.3,3663.2,2.72985367]
[1754535427855,0.4402,3663.8,3663.3,2.72977916]
[1754535428042,2.72920764,3664.1,3663.3,2.72977916]
[1754535428043,5.2608,3663.7,3663.3,2.72977916]
[1754535428244,5.124,3663.6,3663.3,2.72977916]
[1754535428563,5.124,3663.6,3663.4,2.7296907]
[1754535428761,0.4808,3663.5,3663.4,2.7296907]
[1754535428953,0.4808,3663.5,3663.3,2.72976112]
[1754535429149,0.921,3663.5,3663.3,2.72976112]
[1754535429468,0.921,3663.5,3663.2,2.72983827]
[1754535429927,0.921,3663.5,3663.3,2.72976232]
[1754535430129,0.4808,3663.5,3663.4,2.72970464]
[1754535430865,4.203,3663.6,3663.3,2.7297594]
[1754535431070,4.6432,3663.6,3663.3,2.7297594]
[1754535431268,0.4808,3663.5,3663.3,2.7297594]
[1754535432562,4.203,3663.6,3663.5,2.72963013]
[1754535432762,4.2,3663.6,3663.3,2.86650821]
[1754535433165,4.2,3663.6,3663.3,0.1368]
[1754535433376,4.2,3663.6,3663.4,2.72970464]
[1754535433560,4.6808,3663.6,3663.4,2.72970464]
[1754535433734,5.121,3663.6,3663.4,2.72970464]
[1754535434553,4.2,3663.6,3663.3,2.86656019]
[1754535434755,0.921,3663.5,3663.3,2.86656019]
[1754535435575,4.2,3663.6,3663.3,0.1368]
[1754535435775,0.921,3663.4,3663.3,0.1368]
[1754535435984,0.921,3663.4,3662.8,2.73209001]
[1754535436279,4.198,3663.3,3663.1,0.1368]
[1754535436643,4.6788,3663.3,3663.1,0.1368]
[1754535436953,4.6788,3663.3,3663.2,2.72978169]
[1754535437966,5.119,3663.3,3663.1,0.1368]
[1754535438271,0.921,3663.2,3662.9,2.73006201]
[1754535438472,0.921,3663.1,3662.9,2.73006201]
[1754535438778,0.921,3663.1,3663.0,2.73000273]
[1754535440276,0.921,3663.1,3662.9,2.73006434]
[1754535440583,0.487,3663.0,3662.9,2.73006434]
[1754535441982,0.9504,3663.0,3662.9,2.73006434]
[1754535442185,0.9504,3663.0,3662.8,2.86893455]
[1754535442384,0.4634,3663.0,3662.9,2.73007726]
[1754535442746,4.198,3663.3,3662.8,2.86894144]
[1754535442981,0.4634,3663.0,3662.8,2.86894144]
[1754535443181,4.6564,3663.0,3662.8,2.73214144]
[1754535443346,0.9504,3662.9,3662.8,2.73214144]
[1754535443863,0.487,3662.9,3662.8,2.73214144]
[1754535444057,4.193,3663.0,3662.9,2.73007726]
[1754535445382,4.68,3663.0,3662.9,2.73007726]
[1754535445554,4.193,3663.0,3662.9,2.73007726]
[1754535445887,1.0872,3663.2,3663.0,2.72999736]
[1754535446092,4.191,3663.1,3663.0,2.72999736]
[1754535446384,1.0872,3663.2,3663.0,2.72999736]
[1754535446559,0.9504,3663.2,3663.1,2.7299282]
[1754535446759,5.1414,3663.2,3663.1,2.7299282]
[1754535447080,5.1414,3663.2,3663.0,2.72998273]
[1754535448083,5.1414,3663.2,3662.9,0.1368]
[1754535448451,5.1414,3663.2,3662.9,0.1388]
[1754535449085,5.1414,3663.2,3663.0,2.72993282]
[1754535449456,5.1414,3663.2,3663.1,2.7299282]
[1754535449788,5.1414,3663.2,3663.0,2.72998359]
[1754535450082,4.678,3663.2,3663.0,2.72998359]
[1754535450382,4.678,3663.2,3663.0,2.72998153]
[1754535451050,5.1414,3663.2,3663.0,2.72998153]
[1754535451253,5.1414,3663.2,3663.1,2.7299282]
[1754535452692,5.1414,3663.2,3662.9,0.1388]
[1754535452693,5.1414,3663.2,3663.0,2.72998291]
[1754535452986,0.9504,3663.1,3662.9,0.1388]
[1754535453198,0.9504,3663.1,3663.0,2.73000273]
[1754535453385,5.1364,3663.1,3662.9,2.86885398]
[1754535453563,5.1364,3663.1,3662.9,0.1388]
[1754535453564,0.9504,3663.0,3662.9,0.1388]
[1754535454068,0.9504,3663.0,3662.9,2.86887726]
[1754535458495,0.487,3663.0,3662.9,2.86887726]
[1754535458714,4.186,3663.1,3663.0,2.73000273]
[1754535459203,4.673,3663.1,3663.0,2.73000273]
[1754535459808,0.1368,3663.4,3663.1,2.72988377]
[1754535459809,0.6238,3663.4,3663.1,2.72988377]
[1754535460175,0.487,3663.4,3663.1,2.72988377]
[1754535460374,4.182,3663.3,3663.2,2.72985061]
[1754535460896,4.182,3663.3,3663.1,2.86671342]
[1754535461073,4.669,3663.3,3663.2,2.72985367]
[1754535461790,4.182,3663.3,3663.2,2.7297985]
[1754535461958,4.181,3663.3,3663.2,2.7297985]
[1754535462364,0.487,3663.6,3663.2,2.7297985]
[1754535462697,4.668,3663.5,3663.2,2.72985367]
[1754535463191,4.668,3663.5,3663.3,2.72972257]
[1754535463892,0.487,3663.5,3663.3,2.72972257]
[1754535464097,4.18,3663.4,3663.3,2.72972257]
[1754535465698,4.18,3663.4,3663.1,2.72991617]
[1754535465699,0.9504,3663.8,3663.4,2.72969284]
[1754535465903,5.1294,3663.7,3663.4,2.72969284]
[1754535466067,4.6424,3663.7,3663.4,2.72969284]
[1754535466397,0.487,3663.6,3663.4,2.72969284]
[1754535466698,4.179,3663.5,3663.4,2.72969284]
[1754535467589,4.666,3663.5,3663.4,2.72969284]
[1754535468992,4.179,3663.5,3663.4,2.72969284]
[1754535469501,4.666,3663.5,3663.4,2.72969284]
[1754535470272,5.1071,3663.5,3663.4,2.72969284]
[1754535471483,4.666,3663.5,3663.4,2.72969284]
[1754535471683,4.663,3663.5,3663.4,2.72969284]
[1754535471885,4.663,3663.5,3663.4,2.86649284]
[1754535472394,0.9173,3663.7,3663.4,2.86649284]
[1754535472594,0.9173,3663.7,3663.6,2.72955562]
[1754535472794,0.9173,3663.7,3663.1,0.2725]
[1754535472795,1e-08,3664.1,3663.2,13.85026618]
[1754535472971,1e-08,3664.1,3664.0,2.72925764]
[1754535473171,4.17600001,3664.1,3664.0,2.86605764]
[1754535473586,1e-08,3664.1,3664.0,2.86605764]
[1754535478506,1e-08,3664.1,3664.0,2.89335021]
[1754535478677,1e-08,3664.1,3664.0,2.86605764]
[1754535479101,1e-08,3664.1,3664.0,3.13655764]
[1754535479807,1e-08,3664.1,3664.0,2.86605764]
[1754535479974,0.47620001,3664.1,3664.0,0.1368]
[1754535480182,0.91730001,3664.1,3664.0,2.86605764]
[1754535482409,0.47620001,3664.1,3664.0,2.86605764]
[1754535482614,1e-08,3664.1,3664.0,2.86605764]
[1754535483086,0.47620001,3664.1,3664.0,2.86605764]
[1754535483420,0.91730001,3664.1,3664.0,0.1368]
[1754535484211,0.91730001,3664.1,3664.0,2.86605764]
[1754535485500,0.47620001,3664.1,3664.0,2.86605764]
[1754535485881,0.91730001,3664.1,3664.0,2.86605764]
[1754535486880,1e-08,3664.1,3664.0,2.86605764]
[1754535489217,0.47620001,3664.1,3664.0,2.86605764]
[1754535489465,0.91730001,3664.1,3664.0,0.1368]
[1754535490691,0.91730001,3664.1,3664.0,2.86605764]
[1754535492682,1e-08,3664.1,3664.0,2.86605764]
[1754535493018,1e-08,3664.1,3664.0,2.86805764]
[1754535493522,0.47620001,3664.1,3664.0,2.86805764]
[1754535494018,0.91730001,3664.1,3664.0,2.86805764]
[1754535494411,1e-08,3664.1,3664.0,2.86805764]
[1754535495425,0.91730001,3664.1,3664.0,2.86805764]
[1754535495630,0.91730001,3664.1,3664.0,0.1388]
[1754535496523,0.91730001,3664.1,3664.0,2.86805764]
[1754535496899,0.47620001,3664.1,3664.0,2.86805764]
[1754535497105,1e-08,3664.1,3664.0,2.86805764]
[1754535499212,0.91730001,3664.1,3664.0,2.86805764]
[1754535500297,0.47620001,3664.1,3664.0,2.86805764]
[1754535500509,1e-08,3664.1,3664.0,2.86805764]
[1754535505240,0.45420001,3664.1,3664.0,2.86805764]
[1754535506349,0.92280001,3664.1,3664.0,0.1388]
[1754535507024,0.92280001,3664.1,3664.0,2.86805764]
[1754535507431,0.92280001,3664.1,3664.0,0.002]
[1754535507725,0.92280001,3664.1,3664.0,2.73125764]
[1754535508961,1e-08,3664.1,3664.0,2.73125764]
[1754535509275,0.45420001,3664.1,3664.0,2.73125764]
[1754535509763,0.45420001,3664.1,3664.0,2.86805764]
[1754535509936,0.92280001,3664.1,3664.0,0.1388]
[1754535510142,0.92280001,3664.1,3664.0,2.73125764]
[1754535511667,0.92280001,3664.1,3664.0,0.002]
[1754535511985,0.92280001,3664.1,3664.0,2.73125764]
[1754535512669,0.92280001,3664.1,3664.0,0.002]
[1754535516065,1.05960001,3664.1,3664.0,0.002]
[1754535516363,7.96278316,3664.1,3664.0,0.002]
[1754535516975,5.23360001,3664.1,3664.0,0.002]
[1754535517870,7.96278316,3664.1,3664.0,0.002]
[1754535518076,5.23360001,3664.1,3664.0,0.002]
[1754535518586,7.96278316,3664.1,3664.0,0.002]
[1754535518878,5.23360001,3664.1,3664.0,0.002]
[1754535519079,1.05960001,3664.1,3664.0,0.002]
[1754535519291,0.13680001,3664.1,3664.0,0.002]
[1754535519577,1e-08,3664.1,3664.0,3.13855764]
[1754535519873,1e-08,3664.1,3664.0,2.86805764]
[1754535520567,1e-08,3664.1,3664.0,0.1388]
[1754535520790,0.92280001,3664.1,3664.0,0.1388]
[1754535521077,1e-08,3664.1,3664.0,2.86805764]
[1754535522380,0.45420001,3664.1,3664.0,2.86805764]
[1754535523879,0.45420001,3664.1,3664.0,0.1388]
[1754535524046,0.92280001,3664.1,3664.0,0.1388]
[1754535524253,0.92280001,3664.1,3664.0,0.002]
[1754535525884,1.05960001,3664.1,3664.0,0.002]
[1754535529884,5.23360001,3664.1,3664.0,0.002]
[1754535538873,1.05960001,3664.1,3664.0,0.002]
[1754535539102,5.23260001,3664.1,3664.0,0.002]
[1754535540609,0.13680001,3664.1,3664.0,0.002]
[1754535540779,4.30980001,3664.1,3664.0,0.002]
[1754535541497,1e-08,3664.1,3664.0,3.00175764]
[1754535541812,4.17300001,3664.1,3664.0,3.35485764]
[1754535542312,4.17300001,3664.1,3664.0,2.73125764]
[1754535542313,4.65420001,3664.1,3664.0,2.73125764]
[1754535542479,4.17300001,3664.1,3664.0,2.73125764]
[1754535542679,1e-08,3664.1,3664.0,2.73125764]
[1754535542875,4.17300001,3664.1,3664.0,3.21805764]
[1754535543401,1e-08,3664.1,3664.0,3.21805764]
[1754535543974,1e-08,3664.1,3664.0,2.73125764]
[1754535544575,0.95450001,3664.1,3664.0,0.002]
[1754535548032,1e-08,3664.1,3664.0,2.73125764]
[1754535548208,4.17300001,3664.1,3664.0,2.73125764]
[1754535548415,4.17300001,3664.1,3664.0,2.86805764]
[1754535548744,1e-08,3664.1,3664.0,2.86805764]
[1754535548892,4.17300001,3664.1,3664.0,2.86805764]
[1754535550302,1e-08,3664.1,3664.0,2.86805764]
[1754535550519,4.17300001,3664.1,3664.0,2.86805764]
[1754535551393,1e-08,3664.1,3664.0,3.13855764]
[1754535552419,1e-08,3664.1,3664.0,2.86805764]
[1754535553438,1e-08,3664.1,3664.0,3.13855764]
[1754535553809,1e-08,3664.1,3664.0,3.35485764]
[1754535554815,1e-08,3664.1,3664.0,3.13855764]
[1754535556044,1e-08,3664.1,3664.0,2.86805764]
[1754535556613,1e-08,3664.1,3664.0,3.13855764]
[1754535558954,1e-08,3664.1,3664.0,3.35485764]
[1754535559975,1e-08,3664.1,3664.0,3.13855764]
[1754535561748,1e-08,3664.1,3664.0,2.86805764]
[1754535563553,0.95980001,3664.1,3664.0,2.86805764]
[1754535565360,0.49740001,3664.1,3664.0,2.86805764]
[1754535565720,1e-08,3664.1,3664.0,2.86805764]
[1754535567263,0.49740001,3664.1,3664.0,2.86805764]
[1754535568652,0.95980001,3664.1,3664.0,2.86805764]
[1754535570962,0.49740001,3664.1,3664.0,2.86805764]
[1754535571361,1e-08,3664.1,3664.0,2.86805764]
[1754535575263,0.49740001,3664.1,3664.0,2.86805764]
[1754535575465,0.95980001,3664.1,3664.0,2.86805764]
[1754535578748,1e-08,3664.1,3664.0,2.86805764]
[1754535578956,0.49740001,3664.1,3664.0,2.86805764]
[1754535579163,0.95980001,3664.1,3664.0,2.86805764]
[1754535580240,0.49740001,3664.1,3664.0,2.86805764]
[1754535580442,1e-08,3664.1,3664.0,7.03805764]
[1754535582474,1e-08,3664.1,3664.0,10.03805764]
[1754535584596,0.95980001,3664.1,3664.0,10.03805764]
[1754535584742,0.95980001,3664.1,3664.0,5.86805764]
[1754535586260,0.95980001,3664.1,3664.0,2.86805764]
[1754535590080,0.49740001,3664.1,3664.0,2.86805764]
[1754535590662,0.93040001,3664.1,3664.0,2.86805764]
[1754535591571,1e-08,3664.1,3664.0,2.86805764]
[1754535591769,1e-08,3664.1,3664.0,10.03805764]
[1754535593994,1e-08,3664.1,3664.0,10.30855764]
[1754535594794,1e-08,3664.1,3664.0,10.52485764]
[1754535595002,1e-08,3664.1,3664.0,10.30855764]
[1754535595290,1e-08,3664.1,3664.0,10.03805764]
[1754535596301,1e-08,3664.1,3664.0,10.30855764]
[1754535596689,1e-08,3664.1,3664.0,10.03805764]
[1754535597595,0.48380001,3664.1,3664.0,7.03805764]
[1754535597801,0.91680001,3664.1,3664.0,7.03805764]
[1754535598492,0.91680001,3664.1,3664.0,7.03705764]
[1754535598863,0.91680001,3664.1,3664.0,2.86805764]
[1754535600200,0.91680001,3664.1,3664.0,0.1388]
[1754535600385,0.91680001,3664.1,3664.0,0.002]
[1754535600795,0.91680001,3664.1,3664.0,2.73125764]
[1754535601302,0.91680001,3664.1,3664.0,0.002]
[1754535601903,10.59106619,3664.1,3664.0,0.002]
[1754535602073,13.32024934,3664.1,3664.0,0.002]
[1754535602273,0.91680001,3664.1,3664.0,0.002]
[1754535602587,1.05360001,3664.1,3664.0,0.002]
[1754535606633,0.48380001,3664.1,3664.0,2.73125764]
[1754535606778,1e-08,3664.1,3664.0,2.86805764]
[1754535609507,0.91680001,3664.1,3664.0,2.86805764]
[1754535610303,1e-08,3664.1,3664.0,2.86805764]
[1754535618089,1e-08,3664.1,3664.0,6.13855764]
[1754535618291,1e-08,3664.1,3664.0,10.30655764]
[1754535618840,1e-08,3664.1,3664.0,10.52285764]
[1754535619536,1e-08,3664.1,3664.0,10.03605764]
[1754535621229,1e-08,3664.1,3664.0,10.30655764]
[1754535621432,1e-08,3664.1,3664.0,10.52285764]
[1754535621997,1e-08,3664.1,3664.0,11.07285764]
[1754535623740,1e-08,3664.1,3664.0,10.85655764]
[1754535625294,1e-08,3664.1,3664.0,11.07285764]
[1754535625495,1e-08,3664.1,3664.0,10.85655764]
[1754535625919,1e-08,3664.1,3664.0,10.58605764]
[1754535627404,0.45240001,3664.1,3664.0,5.86805764]
[1754535627597,1e-08,3664.1,3664.0,10.03505764]
[1754535629001,0.45240001,3664.1,3664.0,10.03505764]
[1754535633610,0.88650001,3664.1,3664.0,10.03505764]
[1754535636056,0.88650001,3664.1,3664.0,7.03505764]
[1754535637246,0.88650001,3664.1,3664.0,2.86805764]
[1754535643350,0.88650001,3664.1,3664.0,0.1388]
[1754535643734,0.88650001,3664.1,3664.0,2.86805764]
[1754535644647,0.88650001,3664.1,3664.0,0.1388]
[1754535645448,0.88650001,3664.1,3664.0,2.86805764]
[1754535648058,0.88650001,3664.1,3664.0,0.1388]
[1754535649113,0.88650001,3664.1,3664.0,2.86805764]
[1754535650861,1e-08,3664.1,3664.0,2.86805764]
[1754535653534,1e-08,3664.1,3664.0,7.30455764]
[1754535653738,1e-08,3664.1,3664.0,10.52085764]
[1754535655224,1e-08,3664.1,3664.0,20.19512382]
[1754535655419,1e-08,3664.1,3664.0,20.74512382]
[1754535658573,1e-08,3664.1,3664.0,20.52882382]
[1754535658778,1e-08,3664.1,3664.0,10.58405764]
[1754535660378,1e-08,3664.1,3664.0,5.86805764]
[1754535660551,0.92980001,3664.1,3664.0,10.03305764]
[1754535661648,0.92980001,3664.1,3664.0,7.03305764]
[1754535662674,0.92980001,3664.1,3664.0,2.86805764]
[1754535664366,1e-08,3664.1,3664.0,2.86805764]
[1754535664567,1e-08,3664.1,3664.0,5.86805764]
[1754535667149,0.48790001,3664.1,3664.0,5.86805764]
[1754535667651,1e-08,3664.1,3664.0,5.86805764]
[1754535668586,0.48790001,3664.1,3664.0,5.86805764]
[1754535669451,1e-08,3664.1,3664.0,5.86805764]
[1754535669885,1e-08,3664.1,3664.0,6.13855764]
[1754535670062,1e-08,3664.1,3664.0,6.35485764]
[1754535670692,1e-08,3664.1,3664.0,6.90485764]
[1754535676695,0.5289,3664.9,3664.8,2.72866186]
[1754535676889,0.9708,3664.9,3664.8,7.02946186]
[1754535677811,0.5289,3664.9,3664.8,7.02946186]
[1754535677976,0.9708,3664.9,3664.8,7.02946186]
[1754535680485,0.5289,3664.9,3664.8,7.02946186]
[1754535680902,0.9971,3664.9,3664.8,7.02946186]
[1754535683204,0.9971,3664.9,3664.8,0.1368]
[1754535683366,0.9971,3664.9,3664.8,2.72866186]
[1754535685803,0.9971,3664.9,3664.7,2.86551715]
[1754535685963,0.041,3664.9,3664.7,2.86551715]
[1754535686167,0.9581,3664.8,3664.7,2.86551715]
[1754535693607,0.041,3664.9,3664.8,2.72866186]
[1754535695114,0.001,3665.2,3665.1,2.72843851]
[1754535695473,0.001,3665.2,3665.1,2.86523851]
[1754535697498,0.001,3665.2,3665.1,5.86523851]
[1754535698536,0.4909,3665.2,3665.1,5.86523851]
[1754535699034,0.9591,3665.2,3665.1,5.86523851]
[1754535699633,0.9591,3665.2,3665.1,2.86523851]
[1754535699801,0.9591,3665.2,3665.0,2.72849692]
[1754535700002,0.9591,3665.2,3664.7,6.88967781]
[1754535700003,0.9581,3665.1,3664.9,2.86537281]
[1754535700232,0.001,3665.2,3665.0,2.72851296]
[1754535700750,0.001,3665.2,3665.1,2.72843851]
[1754535701425,0.9591,3665.2,3665.1,2.72843851]
[1754535716874,0.001,3665.2,3665.1,2.72843851]
[1754535717420,0.4834,3665.2,3665.1,2.72843851]
[1754535718419,0.001,3665.2,3665.1,2.72843851]
[1754535718865,0.001,3665.2,3665.1,3.13573851]
[1754535720267,0.001,3665.2,3665.1,2.86523851]
[1754535721133,0.9319,3665.2,3665.1,2.86523851]
[1754535721329,0.001,3665.2,3665.1,2.86523851]
[1754535724470,0.001,3665.2,3665.1,3.08153851]
[1754535724638,0.001,3665.2,3665.1,3.35203851]
[1754535725173,0.001,3665.2,3665.1,2.86523851]
[1754535725731,0.001,3665.2,3665.1,7.02423851]
[1754535725969,0.001,3665.2,3665.1,8.06103851]
[1754535726332,0.001,3665.2,3665.1,11.06103851]
[1754535726574,1e-08,3665.3,3665.2,6.27836407]
[1754535726876,0.001,3665.7,3665.6,6.27806634]
[1754535727034,1e-08,3665.7,3665.6,10.43706634]
[1754535727239,1e-08,3666.0,3665.9,6.27784309]
[1754535727469,1e-08,3666.0,3665.9,10.57284309]
[1754535727673,1e-08,3666.0,3665.9,11.05964309]
[1754535728369,1e-08,3666.0,3665.9,10.84334309]
[1754535728875,1e-08,3666.0,3665.9,10.57284309]
[1754535729275,0.48240001,3666.0,3665.9,7.02184309]
[1754535729451,0.93090001,3666.0,3665.9,7.02184309]
[1754535729638,0.93090001,3666.0,3665.9,2.86384309]
[1754535734555,0.93090001,3666.0,3665.9,0.136]
[1754535735114,0.93090001,3666.0,3665.9,2.86384309]
[1754535737056,0.48240001,3666.0,3665.9,2.86384309]
[1754535737542,0.93090001,3666.0,3665.9,2.86384309]
[1754535738153,0.48240001,3666.0,3665.9,2.86384309]
[1754535738452,0.48240001,3666.0,3665.9,7.02084309]
[1754535738453,1e-08,3666.0,3665.9,7.02084309]
[1754535738859,0.93090001,3666.0,3665.9,7.02084309]
[1754535740526,0.93090001,3666.0,3665.9,2.86384309]
[1754535741015,0.48240001,3666.0,3665.9,2.86384309]
[1754535741652,0.92150001,3666.0,3665.9,2.86384309]
[1754535742541,0.48240001,3666.0,3665.9,2.86384309]
[1754535742760,1e-08,3666.0,3665.9,2.86384309]
[1754535743162,0.89770001,3666.0,3665.9,2.86384309]
[1754535744569,0.45860001,3666.0,3665.9,2.86384309]
[1754535745665,0.89770001,3666.0,3665.9,2.86384309]
[1754535747374,0.45860001,3666.0,3665.9,2.86384309]
[1754535749769,1e-08,3666.0,3665.9,2.86384309]
[1754535751584,1e-08,3666.0,3665.9,7.01984309]
[1754535751769,1e-08,3666.0,3665.9,7.29034309]
[1754535751969,1e-08,3666.0,3665.9,10.29034309]
[1754535752371,1e-08,3666.0,3665.9,10.29234309]
[1754535753290,1e-08,3666.0,3665.9,10.43584309]
[1754535753485,1e-08,3666.0,3665.9,11.05864309]
[1754535753658,1e-08,3666.0,3665.9,10.84234309]
[1754535754506,1e-08,3666.0,3665.9,11.05864309]
[1754535754889,1e-08,3666.0,3665.9,10.84234309]
[1754535755493,1e-08,3666.0,3665.9,10.57184309]
[1754535756288,1e-08,3666.0,3665.9,11.05864309]
[1754535757480,2.92841347,3668.6,3666.9,2.72709918]
[1754535757481,0.4586,3667.0,3666.9,2.72709918]
[1754535757881,0.4586,3667.0,3666.9,2.86309918]
[1754535758067,0.8977,3667.0,3666.9,2.86309918]
[1754535761174,0.4586,3667.0,3666.9,2.86309918]
[1754535761376,0.8977,3667.0,3666.9,2.86309918]
[1754535762094,0.136,3667.8,3667.5,2.7266024]
[1754535762297,0.136,3667.8,3667.4,2.726709]
[1754535762611,1e-08,3668.2,3667.1,9.67426618]
[1754535762787,0.43910001,3668.2,3668.1,2.72620702]
[1754535763406,0.89770001,3668.2,3668.1,2.72620702]
[1754535767718,0.45860001,3668.2,3668.1,2.72620702]
[1754535768078,1e-08,3668.2,3668.1,2.72620702]
[1754535769784,0.45860001,3668.2,3668.1,2.72620702]
[1754535770421,0.90520001,3668.2,3668.1,2.72620702]
[1754535772604,0.90520001,3668.2,3668.1,2.86220702]
[1754535774886,0.90620001,3668.2,3668.1,2.86220702]
[1754535775422,0.00100001,3668.2,3668.1,2.86220702]
[1754535776388,0.48960001,3668.2,3668.1,2.86220702]
[1754535776588,0.00100001,3668.2,3668.1,2.86220702]
[1754535777383,0.00100001,3668.2,3668.1,6.54670702]
[1754535777384,1e-08,3668.2,3668.1,6.54670702]
[1754535777586,1e-08,3668.2,3668.1,5.72620702]
[1754535777982,1e-08,3668.2,3668.1,5.99670702]
[1754535778396,1e-08,3668.2,3668.1,5.72620702]
[1754535778790,1e-08,3668.2,3668.1,5.99670702]
[1754535779991,1e-08,3668.2,3668.1,5.72620702]
[1754535780999,1e-08,3668.2,3668.1,10.26644502]
[1754535783328,0.48860001,3668.2,3668.1,10.26644502]
[1754535783826,1e-08,3668.2,3668.1,10.26644502]
[1754535785028,0.93520001,3668.2,3668.1,10.26644502]
[1754535785228,0.48860001,3668.2,3668.1,10.26644502]
[1754535786932,1e-08,3668.2,3668.1,10.26644502]
[1754535787425,1e-08,3668.2,3668.1,10.40244502]
[1754535788331,0.48860001,3668.2,3668.1,10.40244502]
[1754535788502,0.93520001,3668.2,3668.1,10.40244502]
[1754535789096,0.48860001,3668.2,3668.1,10.40244502]
[1754535789897,0.93520001,3668.2,3668.1,10.40244502]
[1754535792302,0.48860001,3668.2,3668.1,10.40244502]
[1754535793134,1e-08,3668.2,3668.1,10.40244502]
[1754535794532,0.93520001,3668.2,3668.1,14.55344502]
[1754535795239,1e-08,3668.2,3668.1,14.55344502]
[1754535795825,0.48860001,3668.2,3668.1,14.55344502]
[1754535797248,0.93520001,3668.2,3668.1,14.55544502]
[1754535799409,0.48750954,3668.2,3668.1,14.55544502]
[1754535799609,0.4466,3668.4,3668.3,2.72605839]
[1754535799839,4.286,3669.3,3668.7,2.72571643]
[1754535800017,4.286,3669.3,3668.3,4.286]
[1754535800215,4.286,3669.3,3668.7,2.86169275]
[1754535800552,0.4652,3669.2,3668.7,2.86169275]
[1754535801361,0.4751,3669.1,3668.7,2.86169275]